bitfinex-derivatives/quotes_BNBF0:USTF0_20250220
["timestamp","ask_amount","ask_price","bid_price","bid_amount"]
[1740011707421,1.08663039,653.89,652.01,0.30674376]
[1740011707625,1.08663039,653.88,652.01,0.30674376]
[1740011707924,1.08663039,653.87,652.01,0.30674376]
[1740011708125,1.08663039,653.86,652.01,0.30674376]
[1740011708326,0.30584313,653.93,652.01,0.30674376]
[1740011708527,1.08660509,653.92,652.01,0.30674376]
[1740011708728,1.08660509,653.91,652.01,0.30674376]
[1740011708924,1.08660509,653.9,652.01,0.30674376]
[1740011709225,1.08660509,653.89,652.01,0.30674376]
[1740011709425,1.08660509,653.88,652.01,0.30674376]
[1740011709627,1.08660509,653.87,652.01,0.30674376]
[1740011709828,1.08660509,653.86,652.01,0.30674376]
[1740011710020,1.08660509,653.85,652.01,0.30674376]
[1740011710222,0.30584313,653.93,652.01,0.30674376]
[1740011710423,1.08714313,653.92,652.01,0.30674376]
[1740011710621,1.08714313,653.91,652.01,0.30674376]
[1740011710820,1.08714313,653.9,652.01,0.30674376]
[1740011711021,1.08714313,653.89,652.01,0.30674376]
[1740011711221,1.08714313,653.88,652.01,0.30674376]
[1740011711527,1.08714313,653.87,652.01,0.30674376]
[1740011711727,1.08714313,653.86,652.01,0.30674376]
[1740011711925,1.08714313,653.85,652.01,0.30674376]
[1740011712126,0.30584313,653.93,652.01,0.30674376]
[1740011712428,1.08760405,653.92,652.01,0.30674376]
[1740011712629,1.08760405,653.91,652.01,0.30674376]
[1740011712929,1.08760405,653.9,652.01,0.30674376]
[1740011713123,1.08760405,653.89,652.01,0.30674376]
[1740011713321,1.08760405,653.88,652.01,0.30674376]
[1740011713520,1.08760405,653.87,652.01,0.30674376]
[1740011713727,1.08760405,653.86,652.01,0.30674376]
[1740011713929,1.08760405,653.85,652.01,0.30674376]
[1740011714128,1.08760405,653.84,652.01,0.30674376]
[1740011714329,0.30584313,653.93,652.01,0.30674376]
[1740011714330,1.08760405,653.83,652.01,0.30674376]
[1740011714629,1.08760405,653.82,652.01,0.30674376]
[1740011714830,1.08760405,653.81,652.01,0.30674376]
[1740011715029,1.08760405,653.8,652.01,0.30674376]
[1740011715330,1.08760405,653.79,652.01,0.30674376]
[1740011715529,1.08760405,653.78,652.01,0.30674376]
[1740011715730,1.08760405,653.77,652.01,0.30674376]
[1740011715924,0.30584313,653.93,652.01,0.30674376]
[1740011715925,1.08760405,653.76,652.01,0.30674376]
[1740011716124,1.08760405,653.75,652.13,1.3565794]
[1740011716330,1.08860087,653.74,652.13,1.3565794]
[1740011716530,0.30584313,653.93,652.15,0.30667791]
[1740011716731,1.08856265,653.92,652.15,0.30667791]
[1740011716930,1.08856265,653.91,652.15,0.30667791]
[1740011717230,1.08856265,653.9,652.15,0.30667791]
[1740011717430,1.08856265,653.89,652.15,0.30667791]
[1740011717627,1.08856265,653.88,652.15,0.30667791]
[1740011717831,1.08856265,653.87,652.15,0.30667791]
[1740011718032,1.08856265,653.86,652.15,0.30667791]
[1740011718230,1.08856265,653.85,652.15,0.30667791]
[1740011718431,1.08936806,653.84,652.15,0.30667791]
[1740011718631,1.08936806,653.83,652.15,0.30667791]
[1740011718832,1.08936806,653.82,652.15,0.30667791]
[1740011719027,1.08936806,653.81,652.15,0.30667791]
[1740011719231,0.30584313,653.93,652.15,0.30667791]
[1740011719232,1.08936806,653.8,652.15,0.30667791]
[1740011719427,1.08936806,653.79,652.15,0.30667791]
[1740011719633,1.08936806,653.78,652.15,0.30667791]
[1740011719932,1.08936806,653.77,652.15,0.30667791]
[1740011720131,1.08936806,653.76,652.15,0.30667791]
[1740011720333,0.30584313,653.93,652.15,0.30667791]
[1740011720534,1.37128688,653.92,652.15,0.30667791]
[1740011720833,1.67713936,653.91,652.15,0.30667791]
[1740011721033,1.37128688,653.9,652.15,0.30667791]
[1740011721332,1.37128688,653.89,652.15,0.30667791]
[1740011721628,1.39589646,653.88,652.15,0.30667791]
[1740011721831,1.67716088,653.87,652.15,0.30667791]
[1740011722027,1.67716556,653.86,652.15,0.30667791]
[1740011722227,1.67717024,653.85,652.15,0.30667791]
[1740011722433,1.67717492,653.84,652.15,0.30667791]
[1740011722632,1.6771796,653.83,652.15,0.30667791]
[1740011722832,1.67718427,653.82,652.15,0.30667791]
[1740011723032,1.37128969,653.81,652.15,0.30667791]
[1740011723232,0.30589458,653.82,652.15,0.30667791]
[1740011723233,1.09002995,653.8,652.15,0.30667791]
[1740011723429,1.09002995,653.79,652.15,0.30667791]
[1740011723635,1.09002995,653.78,652.15,0.30667791]
[1740011723831,1.09002995,653.77,652.15,0.30667791]
[1740011724034,1.09002995,653.76,652.15,0.30667791]
[1740011724230,1.09002995,653.75,652.15,0.30667791]
[1740011724434,0.30589458,653.82,652.15,0.30667791]
[1740011724435,1.09162904,653.74,652.15,0.30667791]
[1740011724734,1.09162904,653.73,652.15,0.30667791]
[1740011724933,1.09162904,653.72,652.15,0.30667791]
[1740011725134,1.09162904,653.71,652.15,0.30667791]
[1740011725331,1.09162904,653.7,652.15,0.30667791]
[1740011725535,1.09162904,653.69,652.15,0.30667791]
[1740011725835,1.09162904,653.68,652.15,0.30667791]
[1740011726029,1.09162904,653.67,652.15,0.30667791]
[1740011726230,1.09162904,653.66,652.15,0.30667791]
[1740011726536,1.09162904,653.65,652.15,0.30667791]
[1740011726929,0.30597882,653.64,652.15,0.30667791]
[1740011727138,1.09162904,653.63,652.15,0.30667791]
[1740011727329,1.67897383,653.62,652.15,0.30667791]
[1740011727632,0.30599755,653.6,652.15,0.30667791]
[1740011727836,1.37298565,653.59,652.15,0.30667791]
[1740011728033,3.23045594,654.41,652.15,0.30667791]
[1740011728034,0.30601159,653.57,652.15,0.30667791]
[1740011728237,1.37298565,653.56,652.15,0.30667791]
[1740011728438,1.37298565,653.55,651.52,1.3565794]
[1740011728737,1.37298565,653.54,651.8,1.59982837]
[1740011728937,1.37298565,653.53,651.53,0.30696974]
[1740011729139,1.37298565,653.52,651.53,1.90724565]
[1740011729340,1.37298565,653.51,651.53,1.90724565]
[1740011729538,1.37298565,653.5,651.53,1.90724565]
[1740011729832,1.3730712,653.49,651.53,1.90724565]
[1740011730039,1.3730712,653.48,651.53,1.90724565]
[1740011730239,1.3730712,653.47,651.53,1.90724565]
[1740011730439,1.3730712,653.46,651.53,1.90724565]
[1740011730639,1.37056265,653.45,651.53,1.90724565]
[1740011730840,1.37056265,653.44,651.53,1.90724565]
[1740011731035,1.37056265,653.43,651.53,1.90724565]
[1740011731240,1.37056265,653.42,651.53,1.90724565]
[1740011731540,1.37056265,653.41,651.53,1.90724565]
[1740011731834,1.37056265,653.4,651.53,1.90724565]
[1740011732036,1.08920604,653.39,651.53,1.90724565]
[1740011732238,1.3707996,653.38,651.53,1.90724565]
[1740011732438,0.30610995,653.36,651.53,1.90724565]
[1740011732638,1.3707996,653.35,651.53,1.90724565]
[1740011732840,0.30612401,653.33,651.53,1.90724565]
[1740011733139,1.3707996,653.32,651.53,1.90724565]
[1740011733339,1.37075369,653.31,651.53,1.90724565]
[1740011733536,1.37075369,653.3,651.53,1.90724565]
[1740011733739,1.37075369,653.29,651.53,1.90724565]
[1740011733940,1.37075369,653.28,651.53,1.90724565]
[1740011734237,1.37075369,653.27,651.53,1.90724565]
[1740011734436,1.37075369,653.26,651.53,1.90724565]
[1740011734638,0.58770915,653.25,651.53,1.90724565]
[1740011734942,0.28148446,653.24,651.53,1.90724565]
[1740011735239,1.08599233,653.23,651.53,1.90724565]
[1740011735440,1.08598544,653.22,651.53,1.90724565]
[1740011735939,0.3061615,653.25,651.53,1.90724565]
[1740011736440,0.28148625,653.24,651.53,1.90724565]
[1740011736641,0.30617087,653.23,651.53,1.90724565]
[1740011736841,1.36750713,653.22,651.53,1.90724565]
[1740011737036,1.67368737,653.21,651.53,1.90724565]
[1740011737244,1.67369206,653.2,651.53,1.90724565]
[1740011737542,1.67369675,653.19,651.53,1.90724565]
[1740011737743,1.67370144,653.18,651.53,1.90724565]
[1740011737936,1.67370612,653.17,651.53,1.90724565]
[1740011738239,1.08602088,653.16,651.53,1.90724565]
[1740011738437,1.08602088,653.15,651.53,1.90724565]
[1740011738639,0.30619899,653.17,651.53,1.90724565]
[1740011738640,1.08602088,653.14,651.53,1.90724565]
[1740011738837,1.08602088,653.13,651.53,1.90724565]
[1740011739143,1.08602088,653.12,651.53,1.90724565]
[1740011739342,1.08602088,653.11,651.53,1.90724565]
[1740011739543,1.08602088,653.1,651.53,1.90724565]
[1740011739738,1.08602088,653.09,651.53,1.90724565]
[1740011739942,1.08602088,653.08,651.53,1.90724565]
[1740011740142,1.08602088,653.07,651.53,1.90724565]
[1740011740342,1.08602088,653.06,651.53,1.90724565]
[1740011740543,1.08602088,653.05,651.53,1.90724565]
[1740011740740,1.08602088,653.04,651.53,1.90724565]
[1740011740940,1.08602088,653.03,651.53,1.90724565]
[1740011741237,1.08602088,653.02,651.53,1.90724565]
[1740011741442,1.08602088,653.01,651.53,1.90724565]
[1740011741643,0.30619899,653.17,651.53,1.90724565]
[1740011741838,1.08334995,653.16,651.53,1.90724565]
[1740011742042,1.08334995,653.15,651.53,1.90724565]
[1740011742242,1.08319496,653.14,651.53,1.90724565]
[1740011742443,1.08319496,653.13,651.53,1.90724565]
[1740011742743,1.08319496,653.12,651.53,1.90724565]
[1740011742943,1.08319496,653.11,651.53,1.90724565]
[1740011743145,1.08319496,653.1,651.53,1.90724565]
[1740011743448,0.30619899,653.17,651.53,1.90724565]
[1740011743643,1.36440546,653.16,651.53,1.90724565]
[1740011743948,1.36440546,653.15,651.53,1.90724565]
[1740011744244,1.36440546,653.14,651.53,1.90724565]
[1740011744444,1.08293829,653.13,651.53,1.90724565]
[1740011744644,1.08293829,653.12,651.53,1.90724565]
[1740011744844,1.08293829,653.11,651.53,1.90724565]
[1740011745043,1.08293829,653.1,651.53,1.90724565]
[1740011745245,1.08274038,653.09,651.53,1.90724565]
[1740011745444,0.30619899,653.17,651.53,1.90724565]
[1740011745647,1.36423356,653.16,651.53,1.90724565]
[1740011745844,1.36423356,653.15,651.53,1.90724565]
[1740011746046,1.36423356,653.14,651.53,1.90724565]
[1740011746346,1.36423418,653.13,651.53,1.90724565]
[1740011746541,1.08274365,653.12,651.53,1.90724565]
[1740011746743,1.08274365,653.11,651.53,1.90724565]
[1740011746946,0.30619899,653.17,651.53,1.90724565]
[1740011747145,1.08266869,653.16,651.53,1.90724565]
[1740011747449,1.36419028,653.15,651.53,1.90724565]
[1740011747648,1.36419028,653.14,651.53,1.90724565]
[1740011747847,1.36419028,653.13,651.53,1.90724565]
[1740011748147,1.36419028,653.12,651.53,1.90724565]
[1740011748347,1.08266869,653.11,651.53,1.90724565]
[1740011748550,1.36419965,653.1,651.53,1.90724565]
[1740011748841,1.36419965,653.09,651.53,1.90724565]
[1740011749044,1.36413462,653.08,651.53,1.90724565]
[1740011749246,1.36413462,653.07,651.53,1.90724565]
[1740011749445,1.36413462,653.06,651.53,1.90724565]
[1740011749646,1.36413462,653.05,651.53,1.90724565]
[1740011749843,1.08260366,653.04,651.53,1.90724565]
[1740011750048,1.08230809,653.03,651.53,1.90724565]
[1740011750249,1.36385894,653.02,651.53,1.90724565]
[1740011750447,1.36385894,653.01,651.53,1.90724565]
[1740011750649,1.36385894,653.0,651.53,1.90724565]
[1740011750948,1.36385894,652.99,651.53,1.90724565]
[1740011751147,1.36385894,652.98,651.53,1.90724565]
[1740011751347,1.36385894,652.97,651.53,1.90724565]
[1740011751545,1.36385894,652.96,651.53,1.90724565]
[1740011751747,1.36385894,652.95,651.53,1.90724565]
[1740011752042,1.36385894,652.94,651.53,1.90724565]
[1740011752248,1.67017048,652.93,651.53,1.90724565]
[1740011752444,1.36385894,652.92,651.53,1.90724565]
[1740011752641,1.36385894,652.91,651.53,1.90724565]
[1740011752845,1.67018456,652.9,651.53,1.90724565]
[1740011753049,1.36385894,652.89,651.53,1.90724565]
[1740011753349,1.36385894,652.88,651.53,1.90724565]
[1740011753544,1.36385894,652.87,651.53,1.90724565]
[1740011753746,1.36385894,652.86,651.53,1.90724565]
[1740011753949,1.36385894,652.85,651.53,1.90724565]
[1740011754149,1.36385894,652.84,651.53,1.90724565]
[1740011754350,1.36385894,652.83,651.53,1.90724565]
[1740011754543,1.36385894,652.82,651.53,1.90724565]
[1740011754747,1.36385894,652.81,651.53,1.90724565]
[1740011755047,1.36385894,652.8,651.53,1.90724565]
[1740011755245,1.08230809,652.79,651.53,1.90724565]
[1740011755450,0.30632562,652.9,651.53,1.90724565]
[1740011755644,1.36090082,652.89,651.53,1.90724565]
[1740011755845,1.36090082,652.88,651.53,1.90724565]
[1740011756145,1.36090082,652.87,651.53,1.90724565]
[1740011756346,1.07927886,652.86,651.53,1.90724565]
[1740011756550,1.07927886,652.85,651.53,1.90724565]
[1740011756751,1.07927886,652.84,651.53,1.90724565]
[1740011756950,0.30632562,652.9,651.53,1.90724565]
[1740011757148,1.36074822,652.89,651.53,1.90724565]
[1740011757344,1.36074822,652.88,651.53,1.90724565]
[1740011757544,1.07913523,652.87,651.53,1.90724565]
[1740011757748,1.07913523,652.86,651.53,1.90724565]
[1740011757948,0.30632562,652.9,651.53,1.90724565]
[1740011757949,1.07913523,652.85,651.53,1.90724565]
[1740011758251,0.28160919,652.84,651.53,1.90724565]
[1740011758452,0.28157491,652.89,651.53,1.90724565]
[1740011758647,0.30632562,652.9,651.53,1.90724565]
[1740011758856,0.28156967,652.89,651.53,1.90724565]
[1740011759345,1.07919399,652.88,651.53,1.90724565]
[1740011759545,1.3607557,652.87,651.53,1.90724565]
[1740011759746,0.28156967,652.86,651.53,1.90724565]
[1740011759951,0.28156967,652.89,651.53,1.90724565]
[1740011760251,1.36075641,652.88,651.53,1.90724565]
[1740011760452,1.36075641,652.87,651.53,1.90724565]
[1740011760645,0.28156967,652.86,651.53,1.90724565]
[1740011760846,0.28156608,652.89,651.53,1.90724565]
[1740011761546,1.0790547,652.88,651.53,1.90724565]
[1740011761746,0.28156608,652.87,651.53,1.90724565]
[1740011761947,0.28156608,652.89,651.53,1.90724565]
[1740011762145,1.36060883,652.88,651.53,1.90724565]
[1740011762451,1.36060883,652.87,651.53,1.90724565]
[1740011762750,0.28156608,652.86,651.53,1.90724565]
[1740011762950,0.28156608,652.89,651.53,1.90724565]
[1740011763152,0.28156608,652.88,651.53,1.90724565]
[1740011763451,0.30632562,652.9,651.53,1.90724565]
[1740011764253,1.36083881,652.89,651.53,1.90724565]
[1740011764453,1.36083881,652.88,651.53,1.90724565]
[1740011764749,1.66717851,652.87,651.53,1.90724565]
[1740011765053,1.6671832,652.86,651.53,1.90724565]
[1740011765253,1.36083881,652.85,651.53,1.90724565]
[1740011765449,0.30634439,652.86,651.53,1.90724565]
[1740011765450,1.36077341,652.84,651.53,1.90724565]
[1740011765654,1.36077341,652.83,651.53,1.90724565]
[1740011765853,1.36077341,652.82,651.53,1.90724565]
[1740011766048,1.36077341,652.81,651.53,1.90724565]
[1740011766253,0.28162503,652.8,651.53,1.90724565]
[1740011766453,0.30634439,652.86,651.53,1.90724565]
[1740011766655,1.36095018,652.85,651.53,1.90724565]
[1740011766855,1.36097606,652.84,651.53,1.90724565]
[1740011767054,0.30634439,652.86,651.53,1.90724565]
[1740011767055,1.36097606,652.83,651.53,1.90724565]
[1740011767251,0.28163834,652.82,651.53,1.90724565]
[1740011767452,0.28163834,652.81,651.53,1.90724565]
[1740011767650,0.28163834,652.8,651.53,1.90724565]
[1740011767853,0.28163834,652.85,651.53,1.90724565]
[1740011768053,1.36116586,652.84,651.53,1.90724565]
[1740011768256,0.28163834,652.83,651.53,1.90724565]
[1740011768457,0.28163834,652.85,651.53,1.90724565]
[1740011768653,1.36147597,652.84,651.53,1.90724565]
[1740011768857,1.36147597,652.83,651.53,1.90724565]
[1740011769054,0.28163834,652.82,651.53,1.90724565]
[1740011769254,0.28163834,652.81,651.53,1.90724565]
[1740011769452,0.28163834,652.8,651.53,1.90724565]
[1740011769656,0.28163834,652.79,651.53,1.90724565]
[1740011769852,0.28163884,652.85,651.53,1.90724565]
[1740011770058,1.08035226,652.84,651.53,1.90724565]
[1740011770257,0.30634439,652.86,651.53,1.90724565]
[1740011770457,1.36230617,652.85,651.53,1.90724565]
[1740011770657,1.36230158,652.84,651.53,1.90724565]
[1740011770857,1.36230158,652.83,651.53,1.90724565]
[1740011771060,1.36230158,652.82,651.53,1.90724565]
[1740011771359,1.36230158,652.81,651.53,1.90724565]
[1740011771561,1.36230158,652.8,651.53,1.90724565]
[1740011771762,0.28162293,652.79,651.53,1.90724565]
[1740011771964,0.30634439,652.86,651.53,1.90724565]
[1740011772161,1.36221198,652.85,651.53,1.90724565]
[1740011772359,1.36221198,652.84,651.53,1.90724565]
[1740011772666,0.30634439,652.86,651.53,1.90724565]
[1740011772667,1.36221198,652.83,651.53,1.90724565]
[1740011772862,1.36221198,652.82,651.53,1.90724565]
[1740011773059,1.36221198,652.81,651.53,1.90724565]
[1740011773265,1.08058061,652.8,651.53,1.90724565]
[1740011773471,1.08058061,652.79,651.53,1.90724565]
[1740011773665,1.08058061,652.78,651.53,1.90724565]
[1740011773860,1.08058061,652.77,651.53,1.90724565]
[1740011774166,1.08058061,652.76,651.53,1.90724565]
[1740011774358,1.08058061,652.75,651.53,1.90724565]
[1740011774561,1.08058061,652.74,651.53,1.90724565]
[1740011774866,1.08058061,652.73,651.53,1.90724565]
[1740011775064,0.30634439,652.86,651.53,1.90724565]
[1740011775065,1.08058061,652.72,651.53,1.90724565]
[1740011775263,1.08058061,652.71,651.53,1.90724565]
[1740011775460,1.08058061,652.7,651.53,1.90724565]
[1740011775660,1.08058061,652.69,651.53,1.90724565]
[1740011775864,0.30634439,652.86,651.53,1.90724565]
[1740011776069,1.08323647,652.85,651.53,1.90724565]
[1740011776265,1.08323647,652.84,651.53,1.90724565]
[1740011776469,1.08323647,652.83,651.53,1.90724565]
[1740011776666,1.08323647,652.82,651.53,1.90724565]
[1740011776970,0.30634439,652.86,651.53,1.90724565]
[1740011776971,1.08323647,652.81,651.53,1.90724565]
[1740011777169,1.08323647,652.8,651.53,1.90724565]
[1740011777365,1.08323647,652.79,651.53,1.90724565]
[1740011777566,0.30634439,652.86,651.53,1.90724565]
[1740011777567,1.08323647,652.78,651.53,1.90724565]
[1740011777769,1.08323647,652.77,651.53,1.90724565]
[1740011777969,1.08323647,652.76,651.53,1.90724565]
[1740011778165,1.08323647,652.75,651.53,1.90724565]
[1740011778365,1.08323647,652.74,651.53,1.90724565]
[1740011778667,1.08323647,652.73,651.53,1.90724565]
[1740011778867,1.08323647,652.72,651.53,1.90724565]
[1740011779066,1.08323647,652.71,651.53,1.90724565]
[1740011779268,1.08323647,652.7,651.53,1.90724565]
[1740011779468,1.08323647,652.69,651.53,1.90724565]
[1740011779670,1.08323647,652.68,651.53,1.90724565]
[1740011779972,1.08323647,652.67,651.53,1.90724565]
[1740011780170,1.08323647,652.66,651.53,1.90724565]
[1740011780368,1.08323647,652.65,651.53,1.90724565]
[1740011780569,1.08323647,652.64,651.53,1.90724565]
[1740011780873,0.30634439,652.86,651.53,1.90724565]
[1740011780874,1.08323647,652.63,651.53,1.90724565]
[1740011781172,1.08323647,652.62,651.53,1.90724565]
[1740011781372,1.08323647,652.61,651.53,1.90724565]
[1740011781669,1.08323647,652.6,651.53,1.90724565]
[1740011781872,1.08323647,652.59,651.53,1.90724565]
[1740011782071,1.08323647,652.58,651.53,1.90724565]
[1740011782272,1.08323647,652.57,651.53,1.90724565]
[1740011782470,1.08323647,652.56,651.53,1.90724565]
[1740011782666,1.08323647,652.55,651.53,1.90724565]
[1740011782871,1.08323647,652.54,651.53,1.90724565]
[1740011783071,1.08323647,652.53,651.53,1.90724565]
[1740011783371,1.08323647,652.52,651.53,1.90724565]
[1740011783673,1.08323647,652.51,651.53,1.90724565]
[1740011783869,1.08323647,652.5,651.53,1.90724565]
[1740011784069,0.30634439,652.86,651.53,1.90724565]
[1740011784268,1.3700228,652.85,651.53,1.90724565]
[1740011784472,1.3700228,652.84,651.53,1.90724565]
[1740011784673,1.08832586,652.83,651.53,1.90724565]
[1740011784873,1.08832586,652.82,651.53,1.90724565]
[1740011785073,1.08832586,652.81,651.53,1.90724565]
[1740011785273,0.30634908,652.85,651.53,1.90724565]
[1740011785274,1.08832586,652.8,651.53,1.90724565]
[1740011785573,1.1326265,653.19,651.53,1.90724565]
[1740011785774,1.09179158,653.18,651.53,1.90724565]
[1740011785969,1.09178965,653.17,651.53,1.90724565]
[1740011786170,1.09178965,653.16,651.53,1.90724565]
[1740011786478,1.09178965,653.15,651.53,0.30696974]
[1740011786677,1.09178965,653.14,651.53,0.30696974]
[1740011786979,1.09178965,653.13,651.53,0.30696974]
[1740011787177,1.09178965,653.12,651.53,0.30696974]
[1740011787377,1.1326265,653.19,651.53,0.30696974]
[1740011787378,1.09178965,653.11,651.53,0.30696974]
[1740011787578,1.09178965,653.1,651.53,0.30696974]
[1740011787777,1.09178965,653.09,651.53,0.30696974]
[1740011787972,1.09178965,653.08,651.53,0.30696974]
[1740011788173,1.09178965,653.07,651.53,0.30696974]
[1740011788376,1.09178965,653.06,651.53,0.30696974]
[1740011788574,1.09178965,653.05,651.53,0.30696974]
[1740011788876,1.09178965,653.04,651.53,0.30696974]
[1740011789072,1.09178965,653.03,651.53,0.30696974]
[1740011789272,1.09178965,653.02,651.53,0.30696974]
[1740011789476,1.09178965,653.01,651.53,0.30696974]
[1740011789676,1.09178965,653.0,651.53,1.90723338]
[1740011789973,1.09299445,652.99,651.53,1.90723338]
[1740011790178,1.09299445,652.98,651.53,1.90723338]
[1740011790380,1.09299445,652.97,651.53,1.90723338]
[1740011790678,1.09299445,652.96,651.53,1.90723338]
[1740011790876,1.09299445,652.95,651.53,1.90723338]
[1740011791082,1.1326265,654.03,651.53,1.90723338]
[1740011791379,1.37425657,654.02,651.53,1.90723338]
[1740011791576,0.30585716,653.9,651.53,1.90723338]
[1740011791777,1.37425657,653.89,651.53,1.90723338]
[1740011791976,0.3059133,653.78,651.53,1.90723338]
[1740011792280,1.37424628,653.77,651.53,1.90723338]
[1740011792482,0.30592734,653.75,651.53,1.90723338]
[1740011792682,1.37424628,653.74,651.53,1.90723338]
[1740011792882,0.30594138,653.72,651.53,1.90723338]
[1740011793080,1.37424628,653.71,651.53,1.90723338]
[1740011793281,0.30595542,653.69,651.53,1.90723338]
[1740011793482,1.37424628,653.68,651.53,1.90723338]
[1740011793781,0.30595542,653.69,651.53,1.90723338]
[1740011793782,1.37424628,653.67,651.53,1.90723338]
[1740011793981,1.37424628,653.66,651.53,1.90723338]
[1740011794183,1.37424628,653.65,651.53,1.90723338]
[1740011794480,1.37424628,653.64,651.53,1.90723338]
[1740011794672,1.1326265,654.2,651.53,1.90723338]
[1740011794673,0.30598818,653.62,651.53,1.90723338]
[1740011794881,1.37424628,653.61,651.53,1.90723338]
[1740011795181,0.30600223,653.59,651.53,1.90723338]
[1740011795379,1.37424628,653.58,651.53,1.90723338]
[1740011795575,0.30601628,653.56,651.53,1.90723338]
[1740011795783,1.09278023,653.55,651.53,1.90723338]
[1740011796081,0.30603032,653.53,651.53,1.90723338]
[1740011796277,1.37410494,653.52,651.53,1.90723338]
[1740011796483,0.30604437,653.5,651.53,1.90723338]
[1740011796784,1.37412684,653.49,651.53,1.90723338]
[1740011797083,1.37412684,653.48,651.53,1.90723338]
[1740011797276,1.37412684,653.47,651.53,1.90723338]
[1740011797480,1.09260824,653.46,651.53,1.90723338]
[1740011797680,1.37412767,653.45,651.53,1.90723338]
[1740011797881,1.1326265,653.74,651.53,1.90723338]
[1740011797882,1.68020014,653.44,651.53,1.90723338]
[1740011798082,1.68020483,653.43,651.53,1.90723338]
[1740011798277,1.37412767,653.42,651.53,1.90723338]
[1740011798483,1.37412767,653.41,651.53,1.90723338]
[1740011798681,1.09260824,653.4,651.54,2.979174]
[1740011798887,1.37412767,653.39,651.54,2.979174]
[1740011799086,1.37404927,653.38,651.56,0.30695561]
[1740011799287,1.37404927,653.37,651.56,0.30695561]
[1740011799486,1.37404927,653.36,651.56,0.30695561]
[1740011799688,1.37404927,653.35,651.56,0.30695561]
[1740011799884,1.37404927,653.34,651.56,0.30695561]
[1740011800083,1.37404927,653.33,651.56,0.30695561]
[1740011800281,1.37404927,653.32,651.56,0.30695561]
[1740011800480,1.37404927,653.31,651.56,0.30695561]
[1740011800687,1.09260824,653.3,651.56,0.30695561]
[1740011800987,1.09260824,653.29,651.56,0.30695561]
[1740011801287,1.09260824,653.28,651.56,0.30695561]
[1740011801488,1.09260824,653.27,651.56,0.30695561]
[1740011801787,0.30607716,653.43,651.56,0.30695561]
[1740011801788,1.09260824,653.26,651.56,0.30695561]
[1740011801987,1.09260824,653.25,651.56,0.30695561]
[1740011802287,1.09260824,653.24,651.56,0.30695561]
[1740011802586,1.09260824,653.23,651.56,0.30695561]
[1740011802788,1.09260824,653.22,651.56,0.30695561]
[1740011802986,1.09260824,653.21,651.56,0.30695561]
[1740011803187,1.09260824,653.2,651.56,0.30695561]
[1740011803388,1.09260824,653.19,651.56,0.30695561]
[1740011803588,1.09260824,653.18,651.56,0.30695561]
[1740011803891,1.09260824,653.17,651.56,0.30695561]
[1740011804091,1.09260824,653.16,651.56,0.30695561]
[1740011804289,1.09260824,653.15,651.56,0.30695561]
[1740011804489,0.30607716,653.43,651.56,0.30695561]
[1740011804490,1.09260824,653.14,651.56,0.30695561]
[1740011804788,1.09260824,653.13,651.56,0.30695561]
[1740011804984,1.09260824,653.12,651.56,0.30695561]
[1740011805183,1.09260824,653.11,651.56,0.30695561]
[1740011805387,1.09260824,653.1,651.56,0.30695561]
[1740011805584,1.09260824,653.09,651.56,0.30695561]
[1740011805891,0.30607716,653.43,651.56,0.30695561]
[1740011806092,1.37213817,653.42,651.56,0.30695561]
[1740011806387,1.37213989,653.41,651.56,0.30695561]
[1740011806590,1.37213989,653.4,651.56,0.30695561]
[1740011806784,1.09072144,653.39,651.56,0.30695561]
[1740011806990,0.30608184,653.42,651.56,0.30695561]
[1740011806991,1.09072144,653.38,651.56,0.30695561]
[1740011807190,1.09072144,653.37,651.56,0.30695561]
[1740011807390,1.09072144,653.36,651.56,0.30695561]
[1740011807593,1.09072144,653.35,651.56,0.30695561]
[1740011807789,1.09072144,653.34,651.56,0.30695561]
[1740011807994,1.09072144,653.33,651.56,0.30695561]
[1740011808195,1.09072144,653.32,651.56,0.30695561]
[1740011808393,0.30608184,653.42,651.56,0.30695561]
[1740011808394,1.09072144,653.31,651.56,0.30695561]
[1740011808592,1.09072144,653.3,651.56,0.30695561]
[1740011808788,1.09072144,653.29,651.56,0.30695561]
[1740011808993,1.09072144,653.28,651.56,0.30695561]
[1740011809188,0.30608184,653.42,651.56,0.30695561]
[1740011809189,1.09072144,653.27,651.56,0.30695561]
[1740011809497,1.09072144,653.26,651.56,0.30695561]
[1740011809692,0.30608184,653.42,651.56,0.30695561]
[1740011809889,1.08974953,653.41,651.56,0.30695561]
[1740011810089,0.30608184,653.42,651.56,0.30695561]
[1740011810090,1.08974953,653.4,651.56,0.30695561]
[1740011810393,1.08974953,653.39,651.56,0.30695561]
[1740011810694,1.08939214,653.38,651.56,0.30695561]
[1740011810892,1.08939214,653.37,651.56,0.30695561]
[1740011811093,1.08939214,653.36,651.56,0.30695561]
[1740011811288,1.08939214,653.35,651.56,0.30695561]
[1740011811492,1.08939214,653.34,651.56,0.30695561]
[1740011811692,1.08939214,653.33,651.56,0.30695561]
[1740011811989,1.08939214,653.32,651.56,0.30695561]
[1740011812194,1.08939214,653.31,651.56,0.30695561]
[1740011812394,1.08939214,653.3,651.56,0.30695561]
[1740011812695,1.08909545,653.29,651.56,0.30695561]
[1740011812994,0.30608184,653.42,651.56,0.30695561]
[1740011813291,1.08904255,653.41,651.56,0.30695561]